lending/lending_fUSD_20251114
["ID","MTS","AMOUNT","RATE_DAILY","PERIOD"]
[393921278,1763096582555,-2264.67705743,0.000548,30]
[393921279,1763096582599,-152.0,0.000548,120]
[393921280,1763096582646,-500.0,0.000548,50]
[393921281,1763096582690,-604.09544816,0.000548,120]
[393921282,1763096582736,-150.0,0.00054823,120]
[393921283,1763096582780,-150.0,0.00054834,120]
[393921284,1763096582825,-150.0,0.00054835,120]
[393921285,1763096582870,-150.0,0.00054835,120]
[393921286,1763096582916,-150.0,0.00054839,120]
[393921287,1763096582961,-150.0,0.00054847,120]
[393921288,1763096583008,-150.0,0.00054852,120]
[393921289,1763096583054,-150.0,0.00054861,120]
[393921290,1763096583101,-150.0,0.00054874,120]
[393921291,1763096583154,-150.0,0.00054875,120]
[393921292,1763096583204,-150.0,0.00054875,120]
[393921293,1763096583260,-150.0,0.00054881,120]
[393921294,1763096583310,-150.0,0.00054883,120]
[393921295,1763096583358,-150.0,0.00054888,120]
[393921296,1763096583405,-150.0,0.00054899,120]
[393921297,1763096583453,-1518.28548212,0.000549,120]
[393921298,1763096583501,-150.0,0.0005491,120]
[393921299,1763096583548,-150.0,0.00054914,120]
[393921300,1763096583596,-150.0,0.00054916,120]
[393921301,1763096583642,-150.0,0.00054916,120]
[393921302,1763096583693,-150.0,0.00054926,120]
[393921303,1763096583741,-150.0,0.00054928,120]
[393921304,1763096583791,-150.0,0.0005493,120]
[393921305,1763096583838,-943.0,0.00054932,30]
[393921306,1763096583883,-150.0,0.00054938,120]
[393921307,1763096583931,-594.23,0.00054939,120]
[393921308,1763096583982,-150.0,0.00054945,120]
[393921309,1763096584030,-175290.91777129,0.0005495,120]
[393921310,1763096584084,-150.0,0.00054951,120]
[393921311,1763096584136,-150.0,0.00054954,120]
[393921312,1763096584183,-150.0,0.00054956,120]
[393921313,1763096584234,-150.0,0.00054956,120]
[393921314,1763096584280,-150.0,0.00054967,120]
[393921315,1763096584325,-417.68189999,0.0005497,120]
[393921316,1763096584371,-150.0,0.00054972,120]
[393921317,1763096584419,-150.0,0.00054981,120]
[393921318,1763096584465,-150.0,0.00054992,120]
[393921319,1763096584512,-150.0,0.00054993,120]
[393921320,1763096584559,-150.0,0.00054996,120]
[393921321,1763096584605,-150.0,0.00054996,120]
[393921322,1763096584651,-150.0,0.00054996,120]
[393921323,1763096584703,-1000.0,0.00054999,120]
[393921324,1763096584750,-478.78,0.00055,120]
[393921325,1763096584800,-234.95,0.00055,120]
[393921326,1763096584850,-2241.3507306,0.00055,120]
[393921327,1763096584899,-765.27564828,0.00055,120]
[393921328,1763096584953,-214.66967055,0.00055,120]
[393921329,1763096585003,-339.39384389,0.00055,120]
[393921330,1763096585051,-500.0,0.00055,30]
[393921331,1763096585100,-5002.4925,0.00055,31]
[393921332,1763096585148,-2207.70322396,0.00055,120]
[393921333,1763096585201,-1000.0,0.00055,120]
[393921334,1763096585250,-154.0,0.00055,120]
[393921335,1763096585303,-932.13,0.00055,120]
[393921336,1763096585350,-535.0,0.00055,120]
[393921337,1763096585397,-550.0,0.00055,120]
[393921338,1763096585448,-6801.62808953,0.00055,120]
[393921339,1763096585497,-951.18,0.00055,120]
[393921340,1763096585545,-186.0,0.00055,60]
[393921341,1763096585594,-230.0,0.00055,120]
[393921342,1763096585642,-150.0,0.00055003,120]
[393921343,1763096585694,-150.0,0.00055003,120]
[393921344,1763096585740,-150.0,0.00055016,120]
[393921345,1763096585787,-150.0,0.00055025,120]
[393921346,1763096586031,-150.0,0.00055033,120]
[393921347,1763096586079,-150.0,0.00055037,120]
[393921348,1763096586125,-150.0,0.00055037,120]
[393921349,1763096586175,-150.0,0.00055054,120]
[393921350,1763096586220,-150.0,0.00055055,120]
[393921351,1763096586265,-150.0,0.00055058,120]
[393921352,1763096586308,-150.0,0.00055061,120]
[393921353,1763096586352,-150.0,0.00055065,120]
[393921354,1763096586396,-500.0,0.00055068,120]
[393921355,1763096586443,-500.0,0.00055068,120]
[393921356,1763096586487,-500.0,0.00055068,120]
[393921357,1763096586534,-230.0,0.00055068,120]
[393921358,1763096586588,-150.0,0.00055073,120]
[393921359,1763096586635,-150.0,0.00055074,120]
[393921360,1763096586684,-150.0,0.00055077,120]
[393921361,1763096586738,-150.0,0.00055077,120]
[393921362,1763096586790,-150.0,0.00055082,120]
[393921363,1763096586836,-150.0,0.00055095,120]
[393921364,1763096586885,-150.0,0.00055095,120]
[393921365,1763096586948,-150.0,0.00055105,120]
[393921366,1763096586994,-150.0,0.00055107,120]
[393921367,1763096587042,-150.0,0.00055111,120]
[393921368,1763096587092,-150.0,0.00055113,120]
[393921369,1763096587139,-150.0,0.00055118,120]
[393921370,1763096587185,-150.0,0.00055118,120]
[393921371,1763096587234,-150.0,0.00055124,120]
[393921372,1763096587277,-200.0,0.00055133,120]
[393921373,1763096587322,-150.0,0.0005514,120]
[393921374,1763096587366,-150.0,0.00055149,120]
[393921375,1763096587412,-150.0,0.00055153,120]
[393921376,1763096587458,-150.0,0.00055158,120]
[393921377,1763096587520,-150.0,0.00055158,120]
[393921378,1763096587569,-150.0,0.00055159,120]
[393921379,1763096587616,-150.0,0.00055168,120]
[393921380,1763096587667,-150.0,0.00055169,120]
[393921381,1763096587718,-150.0,0.0005519,120]
[393921382,1763096587773,-150.0,0.00055192,120]
[393921383,1763096587828,-150.0,0.00055194,120]
[393921384,1763096587878,-150.0,0.00055197,120]
[393921385,1763096587927,-150.0,0.00055198,120]
[393921386,1763096587978,-150.0,0.00055198,120]
[393921387,1763096588030,-2873.2,0.000552,120]
[393921388,1763096588083,-150.0,0.000552,120]
[393921389,1763096588140,-150.0,0.00055211,120]
[393921390,1763096588199,-150.0,0.00055211,120]
[393921391,1763096588249,-150.0,0.00055226,120]
[393921392,1763096588307,-150.0,0.00055232,120]
[393921393,1763096588357,-150.0,0.00055238,120]
[393921394,1763096588406,-150.0,0.00055239,120]
[393921395,1763096588457,-150.0,0.00055239,120]
[393921396,1763096588506,-150.0,0.00055245,120]
[393921397,1763096588555,-150.0,0.00055245,120]
[393921398,1763096588610,-150.0,0.00055255,120]
[393921399,1763096588662,-150.0,0.00055256,120]
[393921400,1763096588716,-150.0,0.00055261,120]
[393921401,1763096588772,-150.0,0.00055263,120]
[393921402,1763096588828,-150.0,0.00055272,120]
[393921403,1763096588881,-150.0,0.00055279,120]
[393921405,1763096588933,-150.0,0.00055279,120]
[393921406,1763096588990,-150.0,0.00055282,120]
[393921407,1763096589041,-150.0,0.00055284,120]
[393921408,1763096589090,-150.0,0.00055312,120]
[393921409,1763096589139,-150.0,0.00055313,120]
[393921410,1763096589189,-150.0,0.00055315,120]
[393921411,1763096589244,-150.0,0.00055319,120]
[393921412,1763096589292,-150.0,0.00055319,120]
[393921413,1763096589339,-150.0,0.00055322,120]
[393921414,1763096589391,-150.0,0.00055327,120]
[393921415,1763096589436,-150.0,0.00055336,120]
[393921416,1763096589489,-150.0,0.00055341,120]
[393921417,1763096589534,-500.0,0.00055342,120]
[393921418,1763096589580,-150.0,0.00055352,120]
[393921419,1763096589625,-150.0,0.00055354,120]
[393921420,1763096589670,-150.0,0.0005536,120]
[393921422,1763096589718,-150.0,0.0005536,120]
[393921423,1763096589768,-150.0,0.00055367,120]
[393921424,1763096589816,-150.0,0.0005537,120]
[393921425,1763096589865,-150.0,0.00055371,120]
[393921426,1763096589912,-150.0,0.00055388,120]
[393921427,1763096589956,-150.0,0.00055391,120]
[393921428,1763096590000,-150.0,0.00055396,120]
[393921429,1763096590042,-150.0,0.00055396,120]
[393921430,1763096590087,-150.0,0.00055399,120]
[393921431,1763096590134,-150.0,0.000554,120]
[393921432,1763096590177,-150.0,0.000554,120]
[393921433,1763096590221,-150.0,0.00055415,120]
[393921434,1763096590267,-150.0,0.00055419,120]
[393921435,1763096590310,-150.0,0.00055419,120]
[393921436,1763096590354,-500.0,0.0005542,45]
[393921437,1763096590396,-507.83083985,0.0005542,120]
[393921438,1763096590440,-150.0,0.00055428,120]
[393921439,1763096590489,-150.0,0.00055431,120]
[393921440,1763096590532,-150.0,0.00055441,120]
[393921441,1763096590575,-150.0,0.00055441,120]
[393921442,1763096590618,-150.0,0.00055448,120]
[393921443,1763096590661,-150.0,0.00055454,120]
[393921444,1763096590704,-150.0,0.00055456,120]
[393921445,1763096590746,-150.0,0.0005546,120]
[393921446,1763096590794,-150.0,0.00055471,120]
[393921447,1763096590843,-150.0,0.00055471,120]
[393921448,1763096590894,-150.0,0.00055471,120]
[393921449,1763096590938,-150.0,0.00055471,120]
[393921450,1763096590986,-150.0,0.00055481,120]
[393921451,1763096591031,-150.0,0.00055481,120]
[393921452,1763096591255,-943.0,0.00055481,30]
[393921453,1763096591300,-150.0,0.00055485,120]
[393921454,1763096591349,-152.0,0.000555,120]
[393921455,1763096591398,-150.0,0.00055504,120]
[393921456,1763096591454,-150.0,0.00055511,120]
[393921457,1763096591500,-150.0,0.00055514,120]
[393921458,1763096591544,-150.0,0.0005552,120]
[393921459,1763096591587,-150.0,0.00055521,120]
[393921460,1763096591630,-150.0,0.00055521,120]
[393921461,1763096591671,-150.0,0.00055523,120]
[393921462,1763096591716,-150.0,0.00055541,120]
[393921463,1763096591758,-150.0,0.00055543,120]
[393921464,1763096591801,-150.0,0.00055546,120]
[393921465,1763096591842,-150.0,0.00055549,120]
[393921466,1763096591883,-150.0,0.0005555,120]
[393921467,1763096591926,-1000.0,0.00055558,120]
[393921468,1763096591968,-1000.0,0.00055558,120]
[393921469,1763096592012,-1000.0,0.00055558,120]
[393921470,1763096592054,-1000.0,0.00055558,120]
[393921471,1763096592094,-1000.0,0.00055558,120]
[393921472,1763096592140,-1000.0,0.00055558,120]
[393921473,1763096592185,-1000.0,0.00055558,120]
[393921474,1763096592228,-1000.0,0.00055558,120]
[393921475,1763096592271,-1000.0,0.00055558,120]
[393921476,1763096592314,-150.0,0.00055562,120]
[393921477,1763096592361,-150.0,0.00055562,120]
[393921478,1763096592410,-1000.0,0.00055569,120]
[393921479,1763096592458,-1000.0,0.00055569,120]
[393921480,1763096592508,-1000.0,0.00055569,120]
[393921481,1763096592557,-1000.0,0.00055569,120]
[393921482,1763096592607,-1000.0,0.00055569,120]
[393921483,1763096592654,-1000.0,0.00055569,120]
[393921484,1763096592705,-1000.0,0.00055569,120]
[393921485,1763096592755,-1000.0,0.00055569,120]
[393921486,1763096592811,-1000.0,0.00055569,120]
[393921487,1763096592864,-150.0,0.00055572,120]
[393921488,1763096592911,-150.0,0.00055575,120]
[393921489,1763096592958,-1000.0,0.0005558,120]
[393921490,1763096593004,-1000.0,0.0005558,120]
[393921491,1763096593050,-1000.0,0.0005558,120]
[393921492,1763096593095,-1000.0,0.0005558,120]
[393921493,1763096593140,-1000.0,0.0005558,120]
[393921494,1763096593184,-1000.0,0.0005558,120]
[393921495,1763096593228,-1000.0,0.0005558,120]
[393921496,1763096593271,-1000.0,0.0005558,120]
[393921497,1763096593314,-1000.0,0.0005558,120]
[393921498,1763096593356,-1000.0,0.0005558,120]
[393921499,1763096593398,-150.0,0.00055586,120]
[393921500,1763096593440,-150.0,0.0005559,120]
[393921501,1763096593485,-1000.0,0.00055591,120]
[393921502,1763096593528,-1000.0,0.00055591,120]
[393921503,1763096593572,-1000.0,0.00055591,120]
[393921504,1763096593618,-1000.0,0.00055591,120]
[393921505,1763096593665,-1000.0,0.00055591,120]
[393921506,1763096593712,-1000.0,0.00055591,120]
[393921507,1763096593759,-1000.0,0.00055591,120]
[393921508,1763096593808,-1000.0,0.00055591,120]
[393921509,1763096593855,-1000.0,0.00055591,120]
[393921510,1763096593903,-1000.0,0.00055591,120]
[393921511,1763096593953,-150.0,0.00055593,120]
[393921512,1763096594001,-150.0,0.000556,120]
[393921513,1763096594051,-150.0,0.00055602,120]
[393921514,1763096594098,-150.0,0.00055602,120]
[393921515,1763096594146,-1000.0,0.00055602,120]
[393921516,1763096594199,-1000.0,0.00055602,120]
[393921517,1763096594247,-1000.0,0.00055602,120]
[393921518,1763096594292,-1000.0,0.00055602,120]
[393921519,1763096594339,-1000.0,0.00055602,120]
[393921520,1763096594384,-1000.0,0.00055602,120]
[393921521,1763096594428,-1000.0,0.00055602,120]
[393921522,1763096594471,-1000.0,0.00055602,120]
[393921523,1763096594514,-1000.0,0.00055602,120]
[393921524,1763096594559,-1000.0,0.00055602,120]
[393921525,1763096594605,-150.0,0.00055606,120]
[393921526,1763096594649,-500.0,0.00055616,120]
[393921527,1763096594694,-150.0,0.00055627,120]
[393921528,1763096594741,-150.0,0.00055627,120]
[393921529,1763096594787,-150.0,0.00055629,120]
[393921530,1763096594833,-150.0,0.0005563,120]
[393921531,1763096594878,-150.0,0.00055634,120]
[393921532,1763096594923,-500.0,0.00055637,120]
[393921533,1763096594968,-150.0,0.00055637,120]
[393921534,1763096595012,-150.0,0.00055643,120]
[393921535,1763096595059,-150.0,0.00055643,120]
[393921536,1763096595104,-150.0,0.00055652,120]
[393921537,1763096595151,-150.0,0.00055658,120]
[393921538,1763096595200,-150.0,0.0005567,120]
[393921539,1763096595246,-150.0,0.00055679,120]
[393921540,1763096595292,-150.0,0.00055682,120]
[393921541,1763096595337,-150.0,0.00055683,120]
[393921542,1763096595387,-150.0,0.00055683,120]
[393921543,1763096595430,-150.0,0.00055687,120]
[393921544,1763096595473,-150.0,0.00055696,120]
[393921545,1763096595517,-150.0,0.00055696,120]
[393921546,1763096595561,-150.0,0.00055696,120]
[393921547,1763096595606,-150.0,0.00055696,120]
[393921548,1763096595650,-150.0,0.0005571,120]
[393921549,1763096595697,-150.0,0.00055716,120]
[393921550,1763096595741,-150.0,0.00055718,120]
[393921551,1763096595785,-150.0,0.00055723,120]
[393921552,1763096595831,-150.0,0.00055723,120]
[393921553,1763096595875,-150.0,0.00055726,120]
[393921554,1763096595920,-150.0,0.00055727,120]
[393921555,1763096596098,-150.0,0.00055731,120]
[393921556,1763096596150,-150.0,0.00055741,120]
[393921557,1763096596204,-150.0,0.00055744,120]
[393921558,1763096596257,-150.0,0.00055749,120]
[393921559,1763096596307,-150.0,0.00055764,120]
[393921560,1763096596355,-150.0,0.00055764,120]
[393921561,1763096596400,-150.0,0.0005577,120]
[393921562,1763096596443,-150.0,0.00055773,120]
[393921563,1763096596495,-150.0,0.00055773,120]
[393921564,1763096596543,-150.0,0.00055783,120]
[393921565,1763096596594,-150.0,0.00055784,120]
[393921566,1763096596645,-150.0,0.00055789,120]
[393921567,1763096596693,-150.0,0.00055802,120]
[393921568,1763096596744,-150.0,0.00055804,120]
[393921569,1763096596791,-150.0,0.00055804,120]
[393921570,1763096596838,-150.0,0.00055815,120]
[393921571,1763096596885,-150.0,0.00055821,120]
[393921572,1763096596930,-150.0,0.00055829,120]
[393921573,1763096596974,-150.0,0.00055831,120]
[393921574,1763096597018,-150.0,0.00055835,120]
[393921575,1763096597064,-150.0,0.00055835,120]
[393921576,1763096597108,-150.0,0.00055844,120]
[393921577,1763096597156,-150.0,0.00055844,120]
[393921578,1763096597205,-150.0,0.00055847,120]
[393921579,1763096597250,-150.0,0.0005585,120]
[393921580,1763096597294,-150.0,0.00055859,120]
[393921581,1763096597336,-150.0,0.00055859,120]
[393921582,1763096597377,-150.0,0.00055869,120]
[393921583,1763096597419,-150.0,0.00055877,120]
[393921584,1763096597462,-150.0,0.00055885,120]
[393921585,1763096597508,-150.0,0.00055885,120]
[393921586,1763096597555,-150.0,0.00055887,120]
[393921587,1763096597602,-150.0,0.00055888,120]
[393921588,1763096597647,-1203.0896661,0.000559,120]
[393921589,1763096597695,-150.0,0.00055903,120]
[393921590,1763096597742,-150.0,0.00055909,120]
[393921591,1763096597787,-500.0,0.00055911,120]
[393921592,1763096597832,-150.0,0.00055914,120]
[393921593,1763096597877,-150.0,0.00055916,120]
[393921594,1763096597924,-150.0,0.00055917,120]
[393921595,1763096597969,-150.0,0.00055925,120]
[393921596,1763096598014,-150.0,0.00055925,120]
[393921597,1763096598060,-150.0,0.00055939,120]
[393921598,1763096598106,-150.0,0.00055946,120]
[393921599,1763096598152,-150.0,0.00055948,120]
[393921600,1763096598199,-150.0,0.00055948,120]
[393921601,1763096598248,-1444.74786048,0.00055959,89]
[393921602,1763096598292,-150.0,0.00055966,120]
[393921603,1763096598339,-150.0,0.00055966,120]
[393921604,1763096598387,-150.0,0.00055975,120]
[393921605,1763096598437,-150.0,0.00055982,120]
[393921606,1763096598484,-150.0,0.00055988,120]
[393921607,1763096598532,-150.0,0.00055991,120]
[393921608,1763096598579,-150.0,0.00055992,120]
[393921609,1763096598629,-150.0,0.00055997,120]
[393921610,1763096598674,-150.0,0.00055997,120]
[393921611,1763096598728,-1000.0,0.00055999,120]
[393921612,1763096598775,-7585.61700332,0.00056,120]
[393921613,1763096598820,-5585.5092626,0.00056,120]
[393921614,1763096598867,-3135.80774624,0.00056,120]
[393921615,1763096598912,-200.0,0.00056,120]
[393921616,1763096598960,-1000.0,0.00056,120]
[393921617,1763096599006,-163.41719363,0.00056,120]
[393921618,1763096599051,-1029.07712646,0.00056,120]
[393921619,1763096599096,-154.0,0.00056,120]
[393921620,1763096599140,-180.0,0.00056,120]
[393921621,1763096599185,-1675.30100211,0.00056,120]
[393921622,1763096599228,-3032.41627275,0.00056,120]
[393921623,1763096599273,-1289.29783851,0.00056,120]
[393921624,1763096599319,-150.0,0.00056003,120]
[393921625,1763096599364,-150.0,0.00056006,120]
[393921626,1763096599407,-150.0,0.00056006,120]
[393921627,1763096599454,-150.0,0.00056007,120]
[393921628,1763096599498,-150.0,0.00056012,120]
[393921629,1763096599543,-150.0,0.00056028,120]
[393921630,1763096599587,-943.0,0.00056031,30]
[393921631,1763096599631,-150.0,0.00056032,120]
[393921632,1763096599674,-150.0,0.00056036,120]
[393921633,1763096599723,-150.0,0.00056043,120]
[393921634,1763096599768,-150.0,0.00056043,120]
[393921635,1763096599812,-150.0,0.00056046,120]
[393921636,1763096599855,-150.0,0.00056046,120]
[393921637,1763096599896,-150.0,0.00056048,120]
[393921638,1763096599940,-150.0,0.00056061,120]
[393921639,1763096599986,-150.0,0.00056068,120]
[393921640,1763096600030,-150.0,0.00056081,120]
[393921641,1763096600076,-150.0,0.00056087,120]
[393921642,1763096600120,-150.0,0.00056087,120]
[393921643,1763096600167,-150.0,0.0005609,120]
[393921644,1763096600216,-150.0,0.00056095,120]
[393921645,1763096600262,-150.0,0.00056101,120]
[393921646,1763096600310,-150.0,0.00056107,120]
[393921647,1763096600358,-150.0,0.00056114,120]
[393921648,1763096600408,-150.0,0.00056118,120]
[393921649,1763096600460,-150.0,0.00056125,120]
[393921650,1763096600507,-150.0,0.00056127,120]
[393921651,1763096600553,-150.0,0.00056127,120]
[393921652,1763096600599,-150.0,0.00056147,120]
[393921653,1763096600646,-150.0,0.00056147,120]
[393921654,1763096600693,-150.0,0.00056147,120]
[393921655,1763096600742,-150.0,0.00056147,120]
[393921656,1763096600790,-150.0,0.00056147,120]
[393921657,1763096600836,-150.0,0.00056147,120]
[393921658,1763096600882,-150.0,0.00056147,120]
[393921659,1763096600928,-150.0,0.00056147,120]
[393921660,1763096601105,-150.0,0.00056167,120]
[393921661,1763096601156,-150.0,0.00056167,120]
[393921662,1763096601212,-150.0,0.00056169,120]
[393921663,1763096601267,-150.0,0.00056176,120]
[393921664,1763096601320,-150.0,0.0005618,120]
[393921665,1763096601367,-500.0,0.00056185,120]
[393921666,1763096601410,-150.0,0.00056187,120]
[393921667,1763096601455,-150.0,0.00056194,120]
[393921668,1763096601502,-150.0,0.00056199,120]
[393921669,1763096601548,-152.0,0.000562,120]
[393921670,1763096601592,-150.0,0.00056205,120]
[393921671,1763096601637,-150.0,0.00056208,120]
[393921672,1763096601680,-150.0,0.00056208,120]
[393921673,1763096601727,-150.0,0.00056214,120]
[393921674,1763096601773,-150.0,0.00056227,120]
[393921675,1763096601817,-150.0,0.00056234,120]
[393921676,1763096601862,-150.0,0.00056246,120]
[393921677,1763096601910,-150.0,0.00056248,120]
[393921678,1763096601960,-150.0,0.00056248,120]
[393921679,1763096602007,-150.0,0.00056251,120]
[393921680,1763096602053,-150.0,0.00056251,120]
[393921681,1763096602099,-150.0,0.00056258,120]
[393921682,1763096602144,-150.0,0.00056262,120]
[393921683,1763096602190,-150.0,0.00056267,120]
[393921684,1763096602240,-200.0,0.00056267,120]
[393921685,1763096602287,-150.0,0.00056283,120]
[393921686,1763096602332,-150.0,0.00056287,120]
[393921687,1763096602374,-150.0,0.00056289,120]
[393921688,1763096602418,-150.0,0.00056289,120]
[393921689,1763096602463,-150.0,0.00056291,120]
[393921690,1763096602508,-150.0,0.00056298,120]
[393921691,1763096602552,-150.0,0.00056298,120]
[393921692,1763096602596,-150.0,0.00056302,120]
[393921693,1763096602639,-150.0,0.00056303,120]
[393921694,1763096602690,-150.0,0.00056306,120]
[393921695,1763096602737,-150.0,0.00056312,120]
[393921696,1763096602781,-150.0,0.0005632,120]
[393921697,1763096602825,-150.0,0.00056329,120]
[393921698,1763096602870,-150.0,0.00056329,120]
[393921699,1763096602915,-150.0,0.00056346,120]
[393921700,1763096602964,-150.0,0.00056347,120]
[393921701,1763096603010,-150.0,0.00056349,120]
[393921702,1763096603056,-150.0,0.00056355,120]
[393921703,1763096603103,-150.0,0.00056369,120]
[393921704,1763096603152,-150.0,0.00056369,120]
[393921705,1763096603201,-150.0,0.00056378,120]
[393921706,1763096603249,-150.0,0.00056378,120]
[393921707,1763096603294,-150.0,0.0005638,120]
[393921708,1763096603339,-150.0,0.00056386,120]
[393921709,1763096603389,-150.0,0.00056391,120]
[393921710,1763096603435,-1000.0,0.000564,120]
[393921711,1763096603482,-1000.0,0.000564,120]
[393921712,1763096603528,-1000.0,0.000564,120]
[393921713,1763096603576,-1000.0,0.000564,120]
[393921714,1763096603625,-1000.0,0.000564,120]
[393921715,1763096603675,-1000.0,0.000564,120]
[393921716,1763096603725,-1000.0,0.000564,120]
[393921717,1763096603778,-1000.0,0.000564,120]
[393921718,1763096603829,-1000.0,0.000564,120]
[393921719,1763096603878,-1000.0,0.000564,120]
[393921720,1763096603927,-1000.0,0.000564,120]
[393921721,1763096603980,-1000.0,0.000564,120]
[393921722,1763096604034,-1000.0,0.000564,120]
[393921723,1763096604084,-1000.0,0.000564,120]
[393921724,1763096604132,-1000.0,0.000564,120]
[393921725,1763096604185,-1000.0,0.000564,120]
[393921726,1763096604239,-1000.0,0.000564,120]
[393921727,1763096604289,-1000.0,0.000564,120]
[393921728,1763096604338,-1000.0,0.000564,120]
[393921729,1763096604386,-1000.0,0.000564,120]
[393921730,1763096604431,-1000.0,0.000564,120]
[393921731,1763096604480,-1000.0,0.000564,120]
[393921732,1763096604526,-150.0,0.00056406,120]
[393921733,1763096604572,-150.0,0.00056407,120]
[393921734,1763096604620,-150.0,0.0005641,120]
[393921735,1763096604669,-150.0,0.0005641,120]
[393921736,1763096604717,-150.0,0.00056418,120]
[393921737,1763096604766,-2016854.06302896,0.0005642,120]
[393921738,1763096604813,-1095.0,0.0005642,120]
[393921739,1763096604858,-150.0,0.00056426,120]
[393921740,1763096604901,-150.0,0.00056435,120]
[393921741,1763096604945,-150.0,0.00056436,120]
[393921742,1763096604991,-500.0,0.00056438,120]
[393921743,1763096605037,-150.0,0.00056444,120]
[393921744,1763096605081,-150.0,0.00056448,120]
[393921745,1763096605126,-150.0,0.0005645,120]
[393921746,1763096605172,-150.0,0.0005645,120]
[393921747,1763096605220,-500.0,0.00056459,120]
[393921748,1763096605266,-150.0,0.00056459,120]
[393921749,1763096605310,-150.0,0.00056459,120]
[393921750,1763096605354,-150.0,0.00056464,120]
[393921751,1763096605398,-150.0,0.00056466,120]
[393921752,1763096605446,-150.0,0.00056474,120]
[393921753,1763096605497,-150.0,0.0005648,120]
[393921754,1763096605547,-150.0,0.0005649,120]
[393921755,1763096605595,-150.0,0.0005649,120]
[393921756,1763096605644,-150.0,0.00056493,120]
[393921757,1763096605694,-150.0,0.00056505,120]
[393921758,1763096605743,-150.0,0.0005651,120]
[393921759,1763096605792,-150.0,0.00056511,120]
[393921760,1763096605840,-150.0,0.00056521,120]
[393921761,1763096605886,-150.0,0.00056524,120]
[393921762,1763096605931,-150.0,0.00056531,120]
[393921763,1763096606103,-150.0,0.00056531,120]
[393921764,1763096606152,-150.0,0.00056545,120]
[393921765,1763096606201,-150.0,0.0005655,120]
[393921766,1763096606251,-150.0,0.00056553,120]
[393921767,1763096606297,-150.0,0.00056563,120]
[393921768,1763096606344,-150.0,0.00056567,120]
[393921769,1763096606393,-150.0,0.00056569,120]
[393921770,1763096606443,-150.0,0.00056571,120]
[393921771,1763096606491,-150.0,0.00056571,120]
[393921772,1763096606538,-150.0,0.00056576,120]
[393921773,1763096606585,-150.0,0.00056579,120]
[393921774,1763096606633,-943.0,0.0005658,30]
[393921775,1763096606683,-150.0,0.00056585,120]
[393921776,1763096606731,-150.0,0.00056598,120]
[393921777,1763096606778,-150.0,0.00056598,120]
[393921778,1763096606826,-150.0,0.00056598,120]
[393921779,1763096606873,-150.0,0.00056598,120]